bitfinex-derivatives/quotes_BTCF0:USTF0_20241025
["timestamp","ask_amount","ask_price","bid_price","bid_amount"]
[1729880580140,0.3608,67166.0,67157.0,0.074545]
[1729880580335,0.074541,67161.0,67157.0,0.074545]
[1729880580740,0.3608,67166.0,67152.0,0.3608]
[1729880580943,0.3608,67166.0,67165.0,0.074537]
[1729880581137,0.3608,67166.0,67153.0,0.22434468]
[1729880581138,0.7216,67166.0,67153.0,0.22434468]
[1729880581438,0.074564,67140.0,67139.0,0.3608]
[1729880581640,0.074566,67139.0,67130.0,0.074575]
[1729880581841,0.074566,67139.0,67127.0,0.3608]
[1729880582546,0.074566,67139.0,67129.0,0.074576]
[1729880582547,0.40589904,67139.0,67129.0,0.074576]
[1729880582847,0.40589904,67139.0,67124.0,0.23072]
[1729880582848,0.40589904,67139.0,67125.0,0.3608]
[1729880583039,0.40589904,67139.0,67128.0,0.074578]
[1729880583241,0.40589904,67139.0,67125.0,0.3608]
[1729880583749,0.40589904,67139.0,67121.0,0.23072]
[1729880584051,0.40589904,67139.0,67114.0,0.00181905]
[1729880584052,0.074589,67118.0,67114.0,0.00181905]
[1729880584254,0.074592,67115.0,67114.0,0.00181905]
[1729880584457,0.40592504,67115.0,67114.0,0.00181905]
[1729880584750,0.33133304,67115.0,67098.0,0.00223532]
[1729880584951,0.074595,67113.0,67109.0,0.3608]
[1729880585145,0.3608,67129.0,67111.0,0.3608]
[1729880585452,0.074577,67129.0,67122.0,0.3608]
[1729880585860,0.33133304,67134.0,67128.0,0.3608]
[1729880586253,0.3608,67146.0,67131.0,0.074574]
[1729880586254,0.074566,67139.0,67131.0,0.074574]
[1729880586447,0.33133304,67144.0,67128.0,0.3608]
[1729880586648,0.40589404,67144.0,67128.0,0.3608]
[1729880586949,0.074561,67144.0,67137.0,0.074567]
[1729880587149,0.3608,67147.0,67138.0,0.074567]
[1729880587454,0.3608,67147.0,67134.0,0.3608]
[1729880587455,0.074557,67147.0,67140.0,0.435364]
[1729880587641,0.074557,67147.0,67127.0,0.23076]
[1729880587642,0.3608,67156.0,67151.0,0.074552]
[1729880587846,0.074548,67155.0,67146.0,0.3608]
[1729880588158,0.07453,67172.0,67146.0,0.3608]
[1729880588159,0.3608,67171.0,67152.0,0.3608]
[1729880588365,0.074533,67169.0,67153.0,0.074549]
[1729880588546,0.0008,67176.0,67173.0,0.074527]
[1729880588749,0.69213304,67186.0,67171.0,0.3608]
[1729880589053,0.3608,67181.0,67171.0,0.435329]
[1729880589258,0.074516,67184.0,67180.0,0.3608]
[1729880589558,0.00076,67194.0,67192.0,0.074507]
[1729880589750,0.3262,67203.0,67183.0,0.23076]
[1729880589751,0.074507,67192.0,67183.0,0.23076]
[1729880590050,0.33133304,67200.0,67191.0,0.3608]
[1729880590255,0.3262,67203.0,67191.0,0.3608]
[1729880590461,0.00076,67211.0,67202.0,0.3608]
[1729880590651,0.07449,67207.0,67195.0,0.3608]
[1729880590851,0.074492,67206.0,67201.0,0.074497]
[1729880591051,0.00076,67211.0,67195.0,0.3608]
[1729880591357,0.074487,67210.0,67203.0,0.074494]
[1729880591551,0.074487,67210.0,67207.0,0.07449]
[1729880592065,0.706082,67215.0,67204.0,0.3608]
[1729880592356,0.074482,67215.0,67207.0,0.07449]
[1729880592656,0.66003304,67221.0,67212.0,0.3608]
[1729880592845,0.3287,67221.0,67212.0,0.3608]
[1729880593048,0.33133304,67227.0,67220.0,0.3608]
[1729880593244,0.40580104,67227.0,67220.0,0.3608]
[1729880593451,0.40580104,67227.0,67222.0,0.074473]
[1729880593653,0.074472,67224.0,67220.0,0.3608]
[1729880594553,0.69213304,67221.0,67183.0,0.3608]
[1729880594760,0.3608,67188.0,67180.0,0.23072]
[1729880594947,0.3608,67188.0,67173.0,0.33133304]
[1729880594948,0.3608,67188.0,67176.0,0.01449258]
[1729880595145,0.074514,67186.0,67169.0,0.3608]
[1729880595349,0.074514,67186.0,67166.0,0.23072]
[1729880595548,0.074514,67186.0,67176.0,0.074524]
[1729880595955,0.074514,67186.0,67166.0,0.23072]
[1729880596161,0.074514,67186.0,67176.0,0.074524]
[1729880596356,0.3608,67182.0,67170.0,0.00223288]
[1729880596671,0.3608,67188.0,67181.0,0.33133304]
[1729880596961,0.3608,67198.0,67197.0,0.074501]
[1729880597461,0.3608,67208.0,67194.0,0.3608]
[1729880597646,0.3608,67200.0,67194.0,0.3608]
[1729880597846,0.3608,67208.0,67194.0,0.3608]
[1729880597847,0.3608,67208.0,67194.0,0.69213304]
[1729880598051,0.3608,67214.0,67195.0,0.074503]
[1729880598353,0.3608,67214.0,67212.0,0.074484]
[1729880598558,0.3608,67222.0,67203.0,0.33133304]
[1729880598757,0.36156,67222.0,67216.0,0.07448]
[1729880598956,0.435274,67222.0,67201.0,0.3608]
[1729880599158,0.435274,67222.0,67203.0,0.33133304]
[1729880599354,0.3608,67211.0,67210.0,0.074487]
[1729880599552,0.3608,67222.0,67203.0,0.33133304]
[1729880599752,0.3608,67228.0,67222.0,0.074473]
[1729880599952,0.3608,67228.0,67210.0,0.56197304]
[1729880599953,0.3608,67228.0,67224.0,0.074471]
[1729880600153,0.3608,67228.0,67226.0,0.074468]
[1729880600462,0.074455,67239.0,67218.0,0.074478]
[1729880600756,0.3608,67226.0,67216.0,0.3608]
[1729880600960,0.074465,67230.0,67211.0,0.074485]
[1729880601158,0.074465,67230.0,67224.0,0.07447]
[1729880601755,0.3608,67234.0,67227.0,0.074467]
[1729880601971,0.3608,67234.0,67210.0,0.24496408]
[1729880601972,0.3608,67234.0,67230.0,0.074464]
[1729880602259,0.3608,67234.0,67232.0,0.074461]
[1729880602467,0.3608,67234.0,67219.0,0.3608]
[1729880602851,0.3608,67234.0,67232.0,0.074461]
[1729880603160,0.33133304,67237.0,67226.0,0.3608]
[1729880603356,0.33133304,67237.0,67226.0,0.2392]
[1729880603558,0.074469,67226.0,67224.0,0.00223102]
[1729880605950,0.69289304,67227.0,67207.0,0.074489]
[1729880606151,0.3608,67208.0,67207.0,0.074489]
[1729880607264,0.36156,67219.0,67202.0,0.4172]
[1729880607465,0.3608,67211.0,67210.0,0.074486]
[1729880608756,0.3608,67213.0,67202.0,0.4172]
[1729880608962,0.3608,67213.0,67212.0,0.074484]
[1729880609178,0.3608,67213.0,67202.0,0.4172]
[1729880609179,0.3608,67219.0,67218.0,0.074477]
[1729880612865,0.3608,67219.0,67218.0,0.086377]
[1729880613466,0.3608,67219.0,67218.0,0.0119]
[1729880614062,0.3608,67219.0,67218.0,0.086377]
[1729880614562,0.3608,67219.0,67218.0,0.41771004]
[1729880614871,0.33133304,67250.0,67218.0,0.41771004]
[1729880614872,0.00076,67241.0,67218.0,0.92685182]
[1729880615065,0.00076,67241.0,67228.0,0.3608]
[1729880615262,0.074452,67241.0,67234.0,0.074459]
[1729880615467,0.3608,67247.0,67235.0,0.074457]
[1729880615672,0.3608,67238.0,67228.0,0.3608]
[1729880615968,0.3608,67238.0,67235.0,0.074459]
[1729880616468,0.3608,67238.0,67236.0,0.074459]
[1729880616770,0.3608,67239.0,67236.0,0.074459]
[1729880616982,0.3608,67239.0,67225.0,0.33133304]
[1729880616983,0.074461,67235.0,67225.0,0.07447]
[1729880617266,0.3608,67230.0,67220.0,0.01465107]
[1729880617467,0.3608,67230.0,67229.0,0.074467]
[1729880617673,0.3608,67245.0,67228.0,0.3608]
[1729880617970,0.3608,67245.0,67238.0,0.074456]
[1729880618165,0.3608,67245.0,67233.0,0.074461]
[1729880618166,0.3608,67239.0,67233.0,0.074461]
[1729880618361,0.3608,67247.0,67236.0,0.3608]
[1729880618670,0.3608,67247.0,67230.0,0.23912]
[1729880618671,0.07442,67271.0,67246.0,0.3608]
[1729880618875,0.3608,67277.0,67267.0,0.33133304]
[1729880619070,0.3608,67277.0,67276.0,0.074415]
[1729880619957,0.33133304,67292.0,67276.0,0.074415]
[1729880619958,0.074376,67311.0,67298.0,0.07439]
[1729880620170,0.3608,67323.0,67296.0,0.3608]
[1729880620171,0.3043,67318.0,67296.0,0.3608]
[1729880620369,0.074377,67311.0,67299.0,0.074389]
[1729880620570,0.3608,67316.0,67304.0,0.3608]
[1729880620774,0.3043,67318.0,67304.0,0.69213304]
[1729880620970,0.33133304,67313.0,67304.0,0.3608]
[1729880621161,0.074377,67310.0,67304.0,0.3608]
[1729880621864,0.3608,67310.0,67296.0,0.3608]
[1729880622066,0.3608,67310.0,67303.0,0.3608]
[1729880622266,0.3043,67318.0,67311.0,0.074376]
[1729880622467,0.3043,67318.0,67310.0,0.3608]
[1729880622674,0.3043,67318.0,67317.0,0.3608]
[1729880624362,0.3043,67318.0,67310.0,0.3608]
[1729880624569,0.3043,67318.0,67311.0,0.074376]
[1729880624767,0.33133304,67321.0,67310.0,0.3608]
[1729880624968,0.3608,67313.0,67296.0,0.00222902]
[1729880625170,0.33133304,67309.0,67299.0,0.074388]
[1729880625366,0.3608,67301.0,67296.0,0.00222902]
[1729880625566,0.3608,67307.0,67296.0,0.00222902]
[1729880625567,0.074381,67305.0,67296.0,0.00222902]
[1729880625869,0.3608,67301.0,67296.0,0.00222902]
[1729880626271,0.3608,67301.0,67298.0,0.074389]
[1729880626466,0.3608,67301.0,67296.0,0.00222902]
[1729880626771,0.33133304,67297.0,67296.0,0.07662002]
[1729880626972,0.33133304,67297.0,67296.0,0.00222902]
[1729880627175,0.33133304,67297.0,67280.0,0.3608]
[1729880627366,0.3608,67291.0,67280.0,0.3608]
[1729880627569,0.3608,67291.0,67285.0,0.074403]
[1729880628671,0.3608,67287.0,67278.0,0.07441]
[1729880628982,0.3608,67279.0,67278.0,0.07441]
[1729880629366,0.3608,67287.0,67274.0,0.074415]
[1729880629674,0.3608,67276.0,67274.0,0.074415]
[1729880630268,0.435202,67287.0,67274.0,0.33133304]
[1729880630269,0.3608,67287.0,67274.0,0.33133304]
[1729880630581,0.3608,67287.0,67277.0,0.3608]
[1729880630783,0.33133304,67278.0,67271.0,0.00222967]
[1729880630977,0.3608,67274.0,67264.0,0.074426]
[1729880631279,0.3608,67274.0,67248.0,0.074444]
[1729880631280,0.69213304,67265.0,67248.0,0.074444]
[1729880631484,0.33133304,67249.0,67248.0,0.074444]
[1729880631888,0.33133304,67261.0,67255.0,0.074436]
[1729880632078,0.3608,67259.0,67256.0,0.074435]
[1729880632381,0.3608,67259.0,67257.0,0.074434]
[1729880632580,0.3608,67265.0,67246.0,0.3608]
[1729880632787,0.6736,67273.0,67270.0,0.074419]
[1729880632978,0.6736,67273.0,67259.0,0.3608]
[1729880632979,0.3608,67273.0,67259.0,0.3608]
[1729880633371,0.3608,67273.0,67270.0,0.074419]
[1729880633974,0.3608,67273.0,67264.0,0.074426]
[1729880634280,0.435217,67273.0,67259.0,0.3608]
[1729880634582,0.33133304,67281.0,67272.0,0.074417]
[1729880634879,0.3608,67282.0,67277.0,0.074412]
[1729880635180,0.3608,67282.0,67269.0,0.23584]
[1729880635387,0.3608,67282.0,67280.0,0.074409]
[1729880635678,0.3608,67282.0,67274.0,0.074415]
[1729880635890,0.3608,67282.0,67269.0,0.23584]
[1729880636180,0.3608,67282.0,67277.0,0.074412]
[1729880636485,0.33133304,67278.0,67263.0,0.00222992]
[1729880636777,0.435207,67282.0,67275.0,0.074414]
[1729880637086,0.3608,67276.0,67275.0,0.074414]
[1729880637383,0.3608,67282.0,67263.0,0.00222992]
[1729880637384,0.074411,67278.0,67271.0,0.074419]
[1729880637678,0.074411,67278.0,67272.0,0.074417]
[1729880638072,0.074411,67278.0,67263.0,0.01675661]
[1729880638073,0.3608,67282.0,67263.0,0.01675661]
[1729880638272,0.3608,67282.0,67268.0,0.3608]
[1729880638470,0.3608,67293.0,67276.0,0.3608]
[1729880638772,0.3608,67293.0,67292.0,0.074395]
[1729880638973,0.3608,67293.0,67282.0,0.3608]
[1729880639183,0.3608,67293.0,67287.0,0.074401]
[1729880639386,0.074396,67292.0,67287.0,0.074401]
[1729880639576,0.33133304,67292.0,67269.0,0.074421]
[1729880639780,0.3608,67282.0,67281.0,0.074408]
[1729880640085,0.3608,67282.0,67269.0,0.074421]
[1729880640086,0.3608,67282.0,67277.0,0.23584]
[1729880640273,0.3608,67285.0,67269.0,0.40575404]
[1729880640476,0.33133304,67279.0,67275.0,0.074414]
[1729880640677,0.33133304,67279.0,67270.0,0.23584]
[1729880640887,0.33133304,67279.0,67277.0,0.074412]
[1729880641285,0.3608,67278.0,67262.0,0.3608]
[1729880641472,0.3608,67285.0,67270.0,0.2358]
[1729880641681,0.435191,67296.0,67292.0,0.074395]
[1729880641877,0.3608,67296.0,67292.0,0.074395]
[1729880642384,0.3608,67296.0,67293.0,0.074394]
[1729880642688,0.3608,67300.0,67299.0,0.074388]
[1729880644889,0.33133304,67333.0,67299.0,0.69213304]
[1729880645180,0.3608,67327.0,67316.0,0.3608]
[1729880645395,0.3608,67327.0,67310.0,0.00222818]
[1729880645396,0.69213304,67319.0,67310.0,0.00222818]
[1729880645587,0.074375,67311.0,67310.0,0.00222818]
[1729880645777,0.074375,67311.0,67295.0,0.375541]
[1729880645778,0.074387,67300.0,67295.0,0.3608]
[1729880645972,0.07439,67297.0,67295.0,0.3608]
[1729880647377,0.69213304,67318.0,67296.0,0.01188]
[1729880647578,0.3608,67318.0,67310.0,0.074376]
[1729880647779,0.07437,67315.0,67310.0,0.074376]
[1729880647987,0.07437,67315.0,67311.0,0.01188]
[1729880648185,0.3608,67321.0,67314.0,0.3608]
[1729880648378,0.3608,67321.0,67319.0,0.074366]
[1729880648578,0.3608,67321.0,67311.0,0.01188]
[1729880648579,0.074355,67329.0,67314.0,0.3608]
[1729880648785,0.074355,67329.0,67324.0,0.07436]
[1729880649279,0.074355,67329.0,67314.0,0.3608]
[1729880649280,0.074355,67329.0,67325.0,0.074359]
[1729880649486,0.074355,67329.0,67325.0,0.074358]
[1729880649890,0.3608,67342.0,67328.0,0.074356]
[1729880649891,0.074348,67336.0,67328.0,0.074356]
[1729880650192,0.435141,67342.0,67336.0,0.074346]
[1729880650489,0.3608,67342.0,67341.0,0.074341]
[1729880650879,0.3608,67342.0,67333.0,0.3608]
[1729880651076,0.43514,67342.0,67338.0,0.074344]
[1729880651276,0.43514,67342.0,67333.0,0.3608]
[1729880651491,0.074344,67339.0,67334.0,0.074349]
[1729880651790,0.074344,67339.0,67336.0,0.074347]
[1729880652284,0.3608,67337.0,67318.0,0.3608]
[1729880652486,0.3608,67329.0,67318.0,0.3608]
[1729880652984,0.33133304,67326.0,67318.0,0.3608]
[1729880653187,0.3608,67327.0,67311.0,0.01188]
[1729880653188,0.07437,67315.0,67311.0,0.01188]
[1729880653576,0.3137,67328.0,67311.0,0.01188]
[1729880653577,0.33133304,67333.0,67312.0,0.3608]
[1729880653785,0.074349,67334.0,67328.0,0.074356]
[1729880653990,0.074349,67334.0,67318.0,0.3608]
[1729880653991,0.074353,67332.0,67326.0,0.074358]
[1729880654288,0.074335,67347.0,67333.0,0.07435]
[1729880654584,0.074335,67347.0,67331.0,0.3608]
[1729880654585,0.33133304,67334.0,67331.0,0.3608]
[1729880654788,0.33133304,67334.0,67307.0,0.074378]
[1729880654789,0.074354,67330.0,67326.0,0.074358]
[1729880655183,0.074363,67322.0,67320.0,0.36302822]
[1729880655386,0.33133304,67321.0,67320.0,0.00222822]
[1729880655594,0.40569704,67321.0,67320.0,0.00222822]
[1729880656095,0.40569704,67321.0,67311.0,0.01188]
[1729880656096,0.76649704,67321.0,67311.0,0.01188]
[1729880656390,0.074374,67312.0,67311.0,0.01188]
[1729880656582,0.435174,67312.0,67311.0,0.01188]
[1729880656783,0.435174,67312.0,67288.0,0.60528]
[1729880656784,0.074382,67305.0,67288.0,0.60528]
[1729880656989,0.3608,67305.0,67294.0,0.3608]
[1729880657188,0.3608,67305.0,67288.0,0.24448]
[1729880657189,0.3608,67305.0,67299.0,0.074387]
[1729880657389,0.074386,67301.0,67294.0,0.074393]
[1729880657589,0.074381,67306.0,67299.0,0.3608]
[1729880657794,0.3608,67324.0,67305.0,0.3608]
[1729880657999,0.074365,67321.0,67305.0,0.3608]
[1729880658192,1.83133304,67328.0,67313.0,0.3608]
[1729880658495,0.074352,67332.0,67328.0,0.074355]
[1729880658691,0.074351,67333.0,67319.0,0.3608]
[1729880658883,0.074352,67332.0,67328.0,0.074356]
[1729880659199,1.25923304,67335.0,67326.0,0.3608]
[1729880659489,0.074337,67346.0,67341.0,0.074341]
[1729880659690,0.33133304,67350.0,67340.0,0.3608]
[1729880659890,0.3608,67352.0,67340.0,0.3608]
[1729880660090,1.35265804,67356.0,67345.0,0.074337]
[1729880660091,0.33133304,67350.0,67345.0,0.074337]
[1729880660288,0.33133304,67350.0,67348.0,0.074334]
[1729880660485,0.33133304,67350.0,67340.0,0.3608]
[1729880660486,0.33133304,67350.0,67349.0,0.074333]
[1729880660886,0.33133304,67350.0,67344.0,0.074338]
[1729880661099,0.34611961,67368.0,67349.0,0.3608]
[1729880661395,0.3608,67379.0,67361.0,0.3608]
[1729880661396,0.3608,67372.0,67361.0,0.3608]
[1729880661589,0.074312,67368.0,67363.0,0.074317]
[1729880661795,0.3608,67366.0,67360.0,0.074319]
[1729880661994,0.3608,67366.0,67355.0,0.3608]
[1729880662189,0.074328,67353.0,67352.0,0.00222695]
[1729880662389,0.074329,67352.0,67345.0,0.074337]
[1729880662596,0.074334,67348.0,67345.0,0.074337]
[1729880663000,0.33133304,67353.0,67339.0,0.3608]
[1729880663204,0.074336,67347.0,67344.0,0.074338]
[1729880663401,0.074329,67352.0,67345.0,0.074336]
[1729880663595,0.9672,67356.0,67343.0,0.074339]
[1729880663596,0.435132,67350.0,67343.0,0.074339]
[1729880663793,0.074337,67345.0,67339.0,0.435143]
[1729880664205,0.074331,67351.0,67339.0,0.3608]
[1729880664497,1.041525,67356.0,67348.0,0.074333]
[1729880664687,1.041525,67356.0,67349.0,0.074332]
[1729880664887,0.9672,67356.0,67339.0,0.69213304]
[1729880665100,0.9672,67356.0,67355.0,0.074326]
[1729880665489,0.9672,67356.0,67345.0,0.3608]
[1729880665490,0.074316,67365.0,67353.0,0.3608]
[1729880665795,0.3608,67365.0,67362.0,0.074318]
[1729880665994,0.074311,67369.0,67356.0,0.074324]
[1729880666296,0.074319,67361.0,67356.0,0.074324]
[1729880666497,0.3608,67359.0,67352.0,0.3608]
[1729880666704,0.10510401,67358.0,67348.0,0.00222729]
[1729880667005,0.3608,67359.0,67358.0,0.074325]
[1729880667301,0.39018705,67359.0,67358.0,0.074325]
[1729880667496,0.39018705,67359.0,67350.0,0.074333]
[1729880667687,0.3608,67351.0,67350.0,0.074333]
[1729880667893,0.3608,67359.0,67348.0,0.00222729]
[1729880667894,0.435123,67359.0,67352.0,0.07433]
[1729880668094,0.435123,67359.0,67355.0,0.074329]
[1729880668286,0.3608,67359.0,67358.0,0.074326]
[1729880669688,0.39023966,67359.0,67358.0,0.074326]
[1729880669887,0.39023966,67359.0,67348.0,0.00222729]
[1729880669888,0.074335,67353.0,67348.0,0.00222729]
[1729880670093,0.074334,67355.0,67348.0,0.00222729]
[1729880670298,0.07434,67349.0,67348.0,0.00222729]
[1729880670601,0.07434,67349.0,67325.0,0.00222811]
[1729880670602,0.36061842,67349.0,67325.0,0.00222811]
[1729880670804,0.074364,67327.0,67325.0,0.00222811]
[1729880671196,0.10308808,67326.0,67325.0,0.00222811]
[1729880671595,0.10308808,67326.0,67300.0,0.37546202]
[1729880671596,0.074381,67312.0,67306.0,0.074386]
[1729880671804,0.38952308,67311.0,67302.0,0.33133304]
[1729880672102,0.38952308,67311.0,67310.0,0.074383]
[1729880672103,0.3608,67311.0,67310.0,0.074383]
[1729880672294,0.074369,67323.0,67308.0,0.33133304]
[1729880672493,0.3608,67318.0,67317.0,0.074375]
[1729880672696,0.074366,67325.0,67318.0,0.074373]
[1729880672901,0.074381,67312.0,67300.0,0.3608]
[1729880673099,0.074381,67312.0,67306.0,0.074387]
[1729880673100,0.40571404,67312.0,67306.0,0.074387]
[1729880673295,0.074383,67310.0,67305.0,0.074388]
[1729880673496,0.074383,67310.0,67306.0,0.074387]
[1729880673695,0.33133304,67312.0,67292.0,0.3608]
[1729880673897,0.33133304,67312.0,67288.0,0.3118]
[1729880673898,0.3608,67300.0,67288.0,0.00208]
[1729880674098,0.074396,67299.0,67283.0,0.0022295]
[1729880674297,0.3608,67300.0,67288.0,0.074407]
[1729880674499,0.074401,67294.0,67288.0,0.074407]
[1729880674705,0.074403,67292.0,67283.0,0.0022295]
[1729880674908,0.074396,67298.0,67284.0,0.01188]
[1729880675112,0.3608,67300.0,67298.0,0.074396]
[1729880676007,0.3608,67300.0,67284.0,0.01188]
[1729880676208,0.3608,67292.0,67284.0,0.01188]
[1729880676401,0.3608,67285.0,67284.0,0.01188]
[1729880676904,0.074385,67309.0,67284.0,0.01188]
[1729880676905,0.3608,67299.0,67294.0,0.0744]
[1729880677107,0.3608,67299.0,67295.0,0.074398]
[1729880677307,0.3608,67299.0,67284.0,0.37268]
[1729880677605,0.3608,67299.0,67291.0,0.074403]
[1729880677799,0.3608,67299.0,67285.0,0.01188]
[1729880678507,0.33133304,67307.0,67293.0,0.3608]
[1729880678709,0.33133304,67307.0,67299.0,0.074394]
[1729880678907,0.33133304,67307.0,67300.0,0.074394]
[1729880679104,0.3608,67306.0,67293.0,0.3608]
[1729880679309,0.3608,67300.0,67298.0,0.074396]
[1729880679606,0.435188,67306.0,67298.0,0.074396]
[1729880680114,0.074391,67303.0,67293.0,0.074401]
[1729880680306,0.33133304,67300.0,67293.0,0.074401]
[1729880681112,0.33133304,67300.0,67286.0,0.3608]
[1729880681113,0.33133304,67300.0,67295.0,0.074399]
[1729880681713,0.3608,67306.0,67286.0,0.3608]
[1729880681913,0.33133304,67287.0,67262.0,0.3608]
[1729880682112,0.3608,67289.0,67259.0,0.074439]
[1729880682113,0.33133304,67263.0,67259.0,0.074439]
[1729880682317,0.6218,67286.0,67256.0,0.3608]
[1729880682318,0.33133304,67270.0,67262.0,0.3608]
[1729880682516,0.33133304,67276.0,67269.0,0.074428]
[1729880682814,0.33133304,67276.0,67261.0,0.3608]
[1729880683010,0.3608,67283.0,67267.0,0.3608]
[1729880683011,0.69213304,67283.0,67267.0,0.3608]
[1729880683310,0.69213304,67283.0,67273.0,0.3608]
[1729880683517,0.33133304,67290.0,67286.0,0.074409]
[1729880683908,0.33133304,67290.0,67273.0,0.3608]
[1729880684107,0.40575604,67274.0,67266.0,0.36288]
[1729880684306,0.33133304,67267.0,67264.0,0.074433]
[1729880685012,0.33133304,67267.0,67265.0,0.074433]
[1729880685205,0.33133304,67267.0,67266.0,0.074432]
[1729880685413,0.33133304,67267.0,67260.0,0.074438]
[1729880685609,0.33133304,67267.0,67256.0,0.3608]
[1729880686009,0.33133304,67267.0,67266.0,0.074432]
[1729880686315,0.33133304,67267.0,67265.0,0.074432]
[1729880686617,0.33133304,67267.0,67266.0,0.074432]
[1729880686809,0.33133304,67267.0,67256.0,0.3608]
[1729880687206,0.33133304,67267.0,67263.0,0.07666511]
[1729880688009,0.40576304,67267.0,67263.0,0.07666511]
[1729880688204,0.33133304,67267.0,67265.0,0.074432]
[1729880689007,0.33133304,67273.0,67272.0,0.074425]
[1729880690209,0.3608,67277.0,67276.0,0.07442]
[1729880691716,0.074422,67276.0,67264.0,0.074433]
[1729880691918,0.33133304,67268.0,67267.0,0.07443]
[1729880692313,0.3608,67277.0,67273.0,0.074424]
[1729880692314,0.33133304,67274.0,67273.0,0.074424]
[1729880692830,0.01441981,67286.0,67273.0,0.3608]
[1729880693013,0.33133304,67298.0,67285.0,0.3608]
[1729880693322,0.33133304,67298.0,67297.0,0.074397]
[1729880695323,0.69213304,67298.0,67297.0,0.074397]
[1729880695524,0.69213304,67298.0,67278.0,0.25224]
[1729880695718,0.69213304,67298.0,67277.0,0.3608]
[1729880695719,0.33133304,67286.0,67277.0,0.3608]
[1729880696016,0.33133304,67284.0,67277.0,0.3608]
[1729880696225,0.33133304,67284.0,67283.0,0.074413]
[1729880696419,0.33133304,67284.0,67272.0,0.3608]
[1729880696917,0.33133304,67284.0,67283.0,0.074413]
[1729880699317,0.3608,67299.0,67278.0,0.3608]
[1729880699318,0.33133304,67291.0,67278.0,0.3608]
[1729880699822,0.33133304,67284.0,67283.0,0.074412]
[1729880700320,0.33133304,67284.0,67271.0,0.074425]
[1729880700515,0.3608,67285.0,67277.0,0.074419]
[1729880700516,0.33133304,67278.0,67277.0,0.074419]
[1729880700717,0.3608,67285.0,67278.0,0.074418]
[1729880700919,0.3608,67285.0,67277.0,0.3608]
[1729880701118,0.33133304,67284.0,67282.0,0.074413]
[1729880701422,0.33133304,67284.0,67283.0,0.074413]
[1729880701919,0.33133304,67284.0,67281.0,0.074414]
[1729880702307,0.33133304,67284.0,67283.0,0.074413]
[1729880702508,0.58353304,67317.0,67289.0,0.074406]
[1729880702509,0.33133304,67291.0,67289.0,0.074406]
[1729880703322,0.33133304,67291.0,67288.0,0.074406]
[1729880703522,0.3608,67289.0,67279.0,0.3608]
[1729880703712,0.3608,67297.0,67296.0,0.074398]
[1729880704120,0.69213304,67297.0,67279.0,0.3608]
[1729880704320,0.33133304,67291.0,67279.0,0.3608]
[1729880704516,0.33133304,67291.0,67290.0,0.074405]
[1729880704714,0.33133304,67291.0,67279.0,0.3608]
[1729880704715,0.3608,67297.0,67296.0,0.074398]
[1729880704915,0.33133304,67303.0,67291.0,0.3608]
[1729880705225,0.40572404,67303.0,67298.0,0.074396]
[1729880705419,0.074392,67302.0,67292.0,0.01188]
[1729880705723,0.40572804,67300.0,67295.0,0.074399]
[1729880705920,0.3608,67296.0,67295.0,0.074399]
[1729880706428,0.3608,67296.0,67292.0,0.01188]
[1729880706618,0.33133304,67293.0,67292.0,0.086283]
[1729880706930,0.074403,67292.0,67291.0,0.01188]
[1729880707119,0.33133304,67293.0,67279.0,0.3608]
[1729880707316,0.074418,67279.0,67273.0,0.074424]
[1729880707518,0.074418,67279.0,67276.0,0.07442]
[1729880707721,0.3608,67277.0,67271.0,0.00222987]
[1729880707921,0.33133304,67272.0,67271.0,0.00222987]
[1729880708126,0.33133304,67272.0,67271.0,0.07665587]
[1729880709239,1.935203,67292.0,67272.0,0.074425]
[1729880709429,0.074405,67290.0,67280.0,0.3608]
[1729880709616,0.69213304,67281.0,67271.0,0.00222987]
[1729880709819,0.76655804,67272.0,67271.0,0.00222987]
[1729880710029,0.3608,67272.0,67271.0,0.07665587]
[1729880710417,0.3608,67272.0,67271.0,0.074426]
[1729880710621,0.074415,67281.0,67266.0,0.3608]
[1729880710822,0.074415,67281.0,67277.0,0.074419]
[1729880711227,0.40574604,67283.0,67266.0,0.3608]
[1729880711427,0.33133304,67283.0,67266.0,0.3608]
[1729880711624,0.074415,67281.0,67266.0,0.3608]
[1729880711821,0.074415,67281.0,67279.0,0.074416]
[1729880712317,0.3608,67280.0,67276.0,0.074418]
[1729880712722,0.074416,67279.0,67276.0,0.074418]
[1729880713020,0.33133304,67277.0,67263.0,0.3608]
[1729880713227,0.33133304,67268.0,67262.0,0.00223]
[1729880713425,0.074426,67269.0,67262.0,0.076662]
[1729880713625,0.3608,67272.0,67262.0,0.00223]
[1729880713944,0.074425,67270.0,67265.0,0.07443]
[1729880714229,0.3608,67272.0,67267.0,0.074428]
[1729880714421,0.435218,67272.0,67264.0,0.074427]
[1729880714830,0.074419,67271.0,67264.0,0.074427]
[1729880715125,0.3608,67284.0,67262.0,0.36303]
[1729880715126,0.3608,67277.0,67269.0,0.3608]
[1729880715330,0.3608,67277.0,67269.0,0.435219]
[1729880715526,0.074413,67276.0,67269.0,0.3608]
[1729880715732,0.074413,67276.0,67272.0,0.074417]
[1729880716025,0.3608,67277.0,67274.0,0.074413]
[1729880716231,0.3608,67293.0,67275.0,0.3608]
[1729880716426,0.3608,67306.0,67288.0,0.3608]
[1729880716631,0.02873949,67305.0,67297.0,0.3608]
[1729880716825,0.07438,67305.0,67297.0,0.3608]
[1729880717033,0.07438,67305.0,67299.0,0.074386]
[1729880717623,0.074382,67303.0,67299.0,0.074386]
[1729880718333,0.074382,67303.0,67298.0,0.3608]
[1729880718334,0.074384,67301.0,67298.0,0.3608]
[1729880718629,0.074385,67300.0,67289.0,0.01188]
[1729880718831,0.21438407,67298.0,67291.0,0.074394]